bitfinex/quotes_SOLUSD_20241125
["timestamp","ask_amount","ask_price","bid_price","bid_amount"]
[1732531256478,7.73512774,253.97,253.92,20.0]
[1732531256979,7.73512774,253.95,253.92,20.0]
[1732531257550,24.6094,254.07,253.92,20.0]
[1732531257854,7.73512774,253.97,253.92,20.0]
[1732531259655,7.73512774,253.95,253.9,20.0]
[1732531260175,24.6094,254.07,253.9,7.73512774]
[1732531260349,7.73512774,253.95,253.92,20.0]
[1732531260777,7.73512774,253.93,253.92,20.0]
[1732531260959,7.73512774,253.93,253.85,23.776884]
[1732531261145,7.73512774,253.93,253.88,20.0]
[1732531261352,3.9372,253.99,253.88,20.0]
[1732531261668,19.8401,254.06,253.89,20.0]
[1732531261669,3.9362,254.05,253.89,20.0]
[1732531261872,7.73512774,253.94,253.89,20.0]
[1732531262369,7.73512774,253.92,253.88,20.0]
[1732531263353,7.73512774,253.9,253.84,17.0883]
[1732531263555,7.73512774,253.87,253.81,6.9962]
[1732531263969,7.73512774,253.87,253.81,9.7541]
[1732531264146,7.73512774,253.87,253.8,7.73512774]
[1732531264352,7.73512774,253.87,253.79,2.7581]
[1732531264657,7.73512774,253.87,253.8,23.776884]
[1732531264857,7.73512774,253.87,253.83,20.0]
[1732531265172,3.9382,253.93,253.78,25.71532774]
[1732531265173,7.73512774,253.85,253.81,20.0]
[1732531265364,7.73512774,253.83,253.81,20.0]
[1732531265564,9.8445,253.95,253.81,20.0]
[1732531265773,7.73512774,253.85,253.81,20.0]
[1732531266776,7.73512774,253.83,253.74,2.7586]
[1732531266949,7.73512774,253.81,253.74,2.7586]
[1732531267352,7.73512774,253.81,253.73,7.73512774]
[1732531267762,7.73512774,253.81,253.73,10.49382774]
[1732531267975,7.73512774,253.81,253.76,20.0]
[1732531268283,7.73512774,253.83,253.77,20.0]
[1732531268488,7.73512774,253.83,253.78,20.0]
[1732531269275,7.73512774,253.81,253.76,20.0]
[1732531269578,7.73512774,253.79,253.75,20.0]
[1732531270574,7.73512774,253.79,253.76,20.0]
[1732531271175,26.0799,253.88,253.77,7.73512774]
[1732531271367,7.73512774,253.85,253.77,7.73512774]
[1732531271577,25.4512,253.94,253.81,7.73512774]
[1732531271766,29.3891,253.94,253.83,7.73512774]
[1732531271969,7.73512774,253.91,253.83,7.73512774]
[1732531272169,3.9377,253.96,253.85,7.73512774]
[1732531272170,7.73512774,253.93,253.85,7.73512774]
[1732531272977,7.73512774,253.91,253.85,7.73512774]
[1732531273165,7.73512774,253.91,253.85,20.0]
[1732531273365,7.73512774,253.89,253.85,20.0]
[1732531273565,7.73512774,253.87,253.83,20.0]
[1732531274272,7.73512774,253.89,253.84,20.0]
[1732531274888,7.73512774,253.91,253.84,20.0]
[1732531275081,7.73512774,253.91,253.86,20.0]
[1732531275657,7.73512774,253.89,253.85,20.0]
[1732531275857,3.938,253.94,253.81,2.7578]
[1732531275858,7.73512774,253.87,253.83,20.0]
[1732531276085,46.2547,254.0,253.83,20.0]
[1732531276385,3.9359,254.07,253.99,20.0]
[1732531276590,25.9518,254.08,254.01,20.0]
[1732531276591,7.73512774,254.06,254.01,20.0]
[1732531276901,3.9353,254.11,254.01,20.0]
[1732531277059,7.73512774,254.07,254.01,20.0]
[1732531277264,25.9518,254.14,254.01,20.0]
[1732531277461,7.73512774,254.06,254.01,20.0]
[1732531277788,3.935,254.13,253.89,85.10617192]
[1732531277789,7.73512774,254.04,253.96,2.7562]
[1732531277965,7.73512774,254.04,253.99,20.0]
[1732531278296,12.07070896,254.0,253.92,39.64695903]
[1732531278484,12.07070896,253.97,253.95,20.0]
[1732531279091,12.07070896,253.97,253.93,20.0]
[1732531279582,3.9361,254.06,253.93,20.0]
[1732531279583,12.07070896,253.99,253.93,20.0]
[1732531279957,3.9363,254.05,253.93,20.0]
[1732531280185,12.07070896,253.97,253.93,20.0]
[1732531280578,12.07070896,253.95,253.92,20.0]
[1732531281078,12.07070896,253.95,253.9,20.0]
[1732531281259,12.07070896,253.95,253.91,20.0]
[1732531282883,12.07070896,253.96,253.91,20.0]
[1732531283182,12.07070896,253.97,253.93,20.0]
[1732531285282,12.07070896,253.99,253.95,20.0]
[1732531285866,12.07070896,253.99,253.93,20.0]
[1732531286782,12.07070896,253.98,253.94,20.0]
[1732531287178,12.07070896,253.97,253.9,14.82760896]
[1732531287377,12.07070896,253.97,253.93,20.0]
[1732531287688,12.07070896,253.98,253.93,20.0]
[1732531287988,12.07070896,253.98,253.91,12.07070896]
[1732531288382,12.07070896,253.98,253.9,14.82760896]
[1732531288577,12.07070896,253.99,253.95,20.0]
[1732531289993,12.07070896,253.97,253.91,2.7568]
[1732531290365,12.07070896,253.94,253.93,20.0]
[1732531290791,12.07070896,253.94,253.9,20.0]
[1732531291187,12.07070896,253.95,253.91,20.0]
[1732531292193,12.07070896,254.02,253.91,20.0]
[1732531292194,12.07070896,253.92,253.91,20.0]
[1732531292395,12.07070896,253.92,253.84,17.8509]
[1732531292597,12.07070896,253.88,253.84,17.8509]
[1732531293099,12.07070896,253.87,253.8,12.07070896]
[1732531293686,12.07070896,253.88,253.81,3.1518]
[1732531293877,12.07070896,253.92,253.85,12.07070896]
[1732531294107,12.07070896,253.92,253.88,20.0]
[1732531294271,12.07070896,253.92,253.87,20.0]
[1732531294883,12.07070896,253.93,253.89,20.0]
[1732531296390,12.07070896,253.94,253.9,20.0]
[1732531297099,12.07070896,253.98,253.91,12.07070896]
[1732531298083,12.07070896,253.97,253.9,35.22150896]
[1732531298374,6.16870896,253.97,253.9,35.22150896]
[1732531298778,28.5126,254.03,253.91,12.07070896]
[1732531299090,12.07070896,253.96,253.9,3.1508]
[1732531299275,12.07070896,253.96,253.92,20.0]
[1732531299476,12.07070896,253.95,253.92,20.0]
[1732531299680,12.07070896,253.95,253.9,20.0]
[1732531299882,12.07070896,253.95,253.91,20.0]
[1732531302384,12.07070896,253.98,253.91,20.0]
[1732531305295,12.07070896,253.98,253.91,22.7568]
[1732531305494,12.07070896,254.0,253.92,12.07070896]
[1732531306003,3.9368,254.02,253.91,20.0]
[1732531306004,12.07070896,254.02,253.95,20.0]
[1732531306298,12.07070896,254.02,253.94,12.07070896]
[1732531306890,12.07070896,254.0,253.92,55.84759296]
[1732531307189,12.07070896,254.0,253.92,58.60429296]
[1732531308905,12.07070896,253.98,253.93,20.0]
[1732531309086,12.07070896,253.96,253.93,20.0]
[1732531309783,12.07070896,253.96,253.92,20.0]
[1732531310902,12.07070896,253.94,253.89,18.7046]
[1732531312287,12.07070896,253.94,253.89,20.0]
[1732531313200,12.07070896,253.96,253.89,20.0]
[1732531313385,12.07070896,253.96,253.91,20.0]
[1732531315105,12.07070896,253.98,253.9,12.07070896]
[1732531315283,9.8408,254.05,253.83,62.89305903]
[1732531315284,12.07070896,253.96,253.91,20.0]
[1732531315907,12.07070896,253.96,253.88,2.7571]
[1732531316097,12.07070896,253.96,253.89,20.0]
[1732531316906,12.07070896,253.96,253.89,22.757]
[1732531317100,12.07070896,253.96,253.89,20.0]
[1732531318491,12.07070896,253.96,253.86,34.82800896]
[1732531319397,12.07070896,253.96,253.88,12.07070896]
[1732531320005,12.07070896,253.96,253.88,14.82780896]
[1732531320603,12.07070896,253.94,253.86,12.07070896]
[1732531320915,12.07070896,253.9,253.83,21.8662]
[1732531321610,12.07070896,253.9,253.82,12.07070896]
[1732531321815,12.07070896,253.88,253.81,2.7578]
[1732531322112,3.9374,253.97,253.81,2.7578]
[1732531322113,12.07070896,253.87,253.81,2.7578]
[1732531322305,7.73325289,253.86,253.79,2.7581]
[1732531322502,7.73325289,253.84,253.78,7.73325289]
[1732531322808,7.73325289,253.84,253.78,2.7582]
[1732531323015,7.73325289,253.83,253.76,28.54875289]
[1732531323203,7.73325289,253.85,253.78,7.73325289]
[1732531323512,28.24737078,253.97,253.79,7.73325289]
[1732531323692,7.73325289,253.89,253.81,10.49105289]
[1732531323897,7.73325289,253.88,253.81,2.7578]
[1732531324390,12.08159648,253.88,253.81,2.7578]
[1732531325212,27.646,253.98,253.83,23.776884]
[1732531325213,12.08159648,253.9,253.83,23.776884]
[1732531325904,12.08159648,253.9,253.83,12.08159648]
[1732531326295,12.08159648,253.9,253.83,14.83919648]
[1732531326921,12.08159648,253.88,253.83,2.7576]
[1732531327214,12.08159648,253.88,253.81,12.08159648]
[1732531327215,12.08159648,253.88,253.81,2.7579]
[1732531327600,12.08159648,253.85,253.8,20.0]
[1732531327905,12.08159648,253.84,253.78,23.776884]
[1732531328105,12.08159648,253.84,253.77,2.7583]
[1732531328323,12.08159648,253.84,253.76,18.0571]
[1732531328494,12.08159648,253.82,253.76,54.94735903]
[1732531328701,3.9393,253.85,253.74,39.64895903]
[1732531328702,12.08159648,253.8,253.74,39.64895903]
[1732531329221,12.08159648,253.82,253.74,39.64895903]
[1732531329513,12.08159648,253.82,253.73,48.97185551]
[1732531329723,12.08159648,253.82,253.73,51.73055551]
[1732531330097,12.08159648,253.82,253.75,12.08159648]
[1732531331101,12.08159648,253.84,253.75,14.84019648]
[1732531331418,12.08159648,253.86,253.78,12.08159648]
[1732531331923,12.08159648,253.88,253.81,12.08159648]
[1732531332296,12.08159648,253.87,253.8,12.08159648]
[1732531333122,12.08159648,253.86,253.78,14.83979648]
[1732531334222,3.9389,253.88,253.81,12.08159648]
[1732531334223,12.08159648,253.88,253.81,12.08159648]
[1732531334820,12.08159648,253.87,253.8,12.08159648]
[1732531335194,12.08159648,253.85,253.79,20.0]
[1732531335414,12.08159648,253.85,253.8,20.0]
[1732531335716,12.08159648,253.84,253.77,12.08159648]
[1732531335891,12.08159648,253.82,253.75,12.08159648]
[1732531336295,12.08159648,253.82,253.73,14.84039648]
[1732531336495,12.08159648,253.8,253.73,14.84039648]
[1732531336715,12.08159648,253.83,253.75,12.08159648]
[1732531337323,12.08159648,253.81,253.77,20.0]
[1732531339525,12.08159648,253.8,253.74,23.776884]
[1732531339716,12.08159648,253.8,253.76,20.0]
[1732531340022,12.08159648,253.82,253.76,20.0]
[1732531342120,12.08159648,253.8,253.76,20.0]
[1732531342830,12.08159648,253.84,253.77,23.776884]
[1732531344128,12.08159648,253.85,253.77,35.85848048]
[1732531344513,12.08159648,253.84,253.77,35.85848048]
[1732531345343,12.08159648,253.84,253.77,38.61688048]
[1732531345533,12.08159648,253.84,253.77,35.85848048]
[1732531347127,12.08159648,253.82,253.78,20.0]
[1732531347322,12.08159648,253.82,253.76,20.0]
[1732531348321,7.73659555,253.81,253.74,23.776884]
[1732531349139,3.9388,253.88,253.74,23.776884]
[1732531349341,7.73659555,253.82,253.74,26.535584]
[1732531350920,7.73659555,253.83,253.75,7.73659555]
[1732531351118,7.73659555,253.83,253.76,23.776884]
[1732531352243,7.73659555,253.81,253.76,23.776884]
[1732531353062,7.73659555,253.78,253.74,23.776884]
[1732531353517,7.73659555,253.78,253.74,20.0]
[1732531354136,7.73659555,253.77,253.73,20.0]
[1732531355346,7.73659555,253.76,253.73,20.0]
[1732531357133,7.73659555,253.77,253.73,20.0]
[1732531357333,7.73659555,253.74,253.64,24.8148]
[1732531357525,7.73659555,253.72,253.64,32.55139555]
[1732531358223,7.73659555,253.72,253.64,25.42079555]
[1732531358418,7.73659555,253.72,253.65,2.7597]
[1732531358624,7.73659555,253.69,253.67,20.0]
[1732531359936,7.73659555,253.68,253.61,20.0]
[1732531360247,7.73659555,253.68,253.59,2.7603]
[1732531360248,7.73659555,253.68,253.63,20.0]
[1732531360938,7.73659555,253.69,253.62,7.73659555]
[1732531361451,7.73659555,253.69,253.62,10.49659555]
[1732531361838,7.73659555,253.68,253.62,2.76]
[1732531364051,9.8522,253.75,253.62,2.76]
[1732531364052,3.9408,253.75,253.64,7.73659555]
[1732531364250,7.73659555,253.72,253.64,7.73659555]
[1732531364548,7.73659555,253.71,253.64,7.73659555]
[1732531364848,7.73659555,253.7,253.63,7.73659555]
[1732531365359,30.9463822,253.76,253.62,2.76]
[1732531365360,7.73659555,253.68,253.64,20.0]
[1732531365724,7.73659555,253.69,253.64,20.0]
[1732531366148,7.73659555,253.7,253.63,7.73659555]
[1732531366453,3.9408,253.76,253.64,10.49639555]
[1732531366629,7.73659555,253.71,253.65,20.0]
[1732531366832,7.73659555,253.7,253.66,20.0]
[1732531367450,7.73659555,253.71,253.66,20.0]
[1732531368347,7.73659555,253.7,253.66,20.0]
[1732531368532,7.73659555,253.7,253.65,22.7596]
[1732531368741,7.73659555,253.68,253.65,2.7596]
[1732531368955,7.73659555,253.69,253.65,2.7596]
[1732531369450,17.8744,253.74,253.59,7.73659555]
[1732531369757,7.73659555,253.67,253.59,7.73659555]
[1732531370645,7.73659555,253.65,253.6,20.0]
[1732531372438,7.73659555,253.65,253.61,2.7601]
[1732531372755,7.73659555,253.65,253.62,20.0]
[1732531373353,7.73659555,253.65,253.61,2.7601]
[1732531376548,7.73659555,253.67,253.61,2.7601]
[1732531376829,7.73659555,253.67,253.62,20.0]
[1732531377658,7.73659555,253.64,253.6,20.0]
[1732531377951,7.73659555,253.64,253.59,2.7603]
[1732531378647,7.73659555,253.63,253.59,2.7603]
[1732531378845,7.73659555,253.64,253.59,2.7603]
[1732531379046,7.73659555,253.64,253.57,2.7605]
[1732531379838,7.73659555,253.63,253.57,2.7605]
[1732531380560,7.73659555,253.63,253.52,19.4833]
[1732531380561,7.73659555,253.6,253.52,19.4833]
[1732531380769,7.73659555,253.58,253.53,2.7609]
[1732531381064,3.9426,253.64,253.52,19.4833]
[1732531381065,7.73659555,253.56,253.52,19.4833]
[1732531381271,7.73659555,253.56,253.49,10.1932]
[1732531381558,7.73659555,253.56,253.48,2.7615]
[1732531381757,7.73659555,253.54,253.48,2.7615]
[1732531382056,7.73659555,253.52,253.46,21.6261]
[1732531382249,3.9429,253.62,253.46,21.6261]
[1732531382433,7.73659555,253.54,253.46,21.6261]
[1732531382642,3.9429,253.62,253.52,27.73659555]
[1732531382866,7.73659555,253.59,253.52,20.0]
[1732531383068,23.7974,253.67,253.52,20.0]
[1732531383367,7.73659555,253.6,253.49,20.0]
[1732531383657,7.73659555,253.6,253.52,7.73659555]
[1732531384053,7.73659555,253.6,253.49,20.0]
[1732531384054,7.73659555,253.63,253.55,7.73659555]
[1732531384257,7.73659555,253.62,253.54,7.73659555]
[1732531384857,7.73659555,253.6,253.53,34.27437955]
[1732531385047,7.73659555,253.61,253.53,34.27437955]
[1732531386669,7.73659555,253.65,253.57,7.73659555]
[1732531387464,7.73659555,253.65,253.6,20.0]
[1732531388551,19.2416,253.72,253.6,20.0]
[1732531388552,7.73659555,253.67,253.6,20.0]
[1732531388752,7.73659555,253.67,253.61,2.7601]
[1732531389268,7.73659555,253.67,253.6,22.7602]
[1732531389852,7.73659555,253.69,253.62,27.73659555]
[1732531390055,3.9408,253.75,253.62,27.73659555]
[1732531390282,7.73659555,253.71,253.62,27.73659555]
[1732531390578,3.9404,253.78,253.68,7.73659555]
[1732531390753,7.73659555,253.77,253.68,7.73659555]
[1732531390951,7.73659555,253.79,253.7,7.73659555]
[1732531391154,3.9402,253.8,253.67,7.73659555]
[1732531391372,7.73659555,253.75,253.7,20.0]
[1732531391556,7.73659555,253.74,253.7,20.0]
[1732531391882,3.9402,253.8,253.7,20.0]
[1732531391883,7.73659555,253.75,253.7,20.0]
[1732531392371,3.9406,253.77,253.69,7.73659555]
[1732531392678,7.73659555,253.74,253.68,22.7593]
[1732531392878,7.73659555,253.73,253.69,20.0]
[1732531393280,31.61298096,253.86,253.69,20.0]
[1732531393589,7.73659555,253.75,253.69,20.0]
[1732531394089,13.7881,253.84,253.7,7.73659555]
[1732531394266,7.73659555,253.8,253.72,7.73659555]
[1732531395175,3.9394,253.84,253.72,7.73659555]
[1732531395354,7.73659555,253.8,253.73,2.7588]
[1732531396584,7.73659555,253.82,253.75,20.0]
[1732531396783,7.73659555,253.8,253.75,20.0]
[1732531396965,7.73659555,253.78,253.7,7.73659555]
[1732531397285,7.73659555,253.78,253.68,2.7593]
[1732531397286,7.73659555,253.76,253.72,20.0]
[1732531397872,7.73659555,253.76,253.71,20.0]
[1732531398982,7.73659555,253.74,253.69,2.7592]
[1732531399168,7.73659555,253.74,253.69,22.7592]
[1732531399483,7.73659555,253.74,253.69,20.0]
[1732531399784,7.73659555,253.74,253.7,20.0]
[1732531399961,7.73659555,253.74,253.69,20.0]
[1732531400161,7.73659555,253.76,253.69,22.7592]
[1732531400360,7.73659555,253.76,253.71,20.0]
[1732531401860,7.73659555,253.76,253.71,22.759]
[1732531406087,7.73659555,253.74,253.71,2.759]
[1732531406382,7.73659555,253.74,253.65,18.6501]
[1732531406383,7.73659555,253.74,253.7,20.0]
[1732531406776,7.73659555,253.74,253.68,20.0]
[1732531406985,7.73659555,253.72,253.69,20.0]
[1732531407480,7.73659555,253.72,253.66,26.536384]
[1732531408379,7.73659555,253.68,253.62,10.5254]
[1732531409479,7.73659555,253.68,253.61,2.7601]
[1732531409888,7.73659555,253.66,253.61,2.7601]
[1732531410364,7.73659555,253.66,253.59,18.8269]
[1732531410365,7.73659555,253.66,253.59,21.5871]
[1732531411080,7.73659555,253.66,253.62,20.0]
[1732531411784,7.73659555,253.68,253.63,20.0]
[1732531415492,7.73659555,253.68,253.63,22.7599]
[1732531415870,7.73659555,253.66,253.62,20.0]
[1732531416569,3.9413,253.72,253.62,20.0]
[1732531416792,7.73659555,253.67,253.62,20.0]
[1732531417386,3.9416,253.7,253.62,20.0]
[1732531417571,7.73659555,253.63,253.56,7.5184]
[1732531417774,7.73659555,253.63,253.55,26.537584]
[1732531418289,7.73659555,253.65,253.56,7.73659555]
[1732531418475,7.73659555,253.65,253.57,23.776884]
[1732531418682,7.73659555,253.65,253.6,20.0]
[1732531420390,7.73659555,253.65,253.61,20.0]
[1732531421388,7.73659555,253.65,253.61,22.7601]
[1732531421796,11.5395,253.72,253.61,22.7601]
[1732531422095,7.73659555,253.67,253.61,22.7601]
[1732531423997,7.73659555,253.69,253.61,2.7601]
[1732531424200,3.9405,253.77,253.62,31.51347955]
[1732531424399,7.73659555,253.71,253.62,31.51347955]
[1732531425285,7.73659555,253.71,253.63,2.7599]
[1732531425875,7.73659555,253.71,253.65,20.0]
[1732531427693,7.73659555,253.69,253.65,20.0]
[1732531428187,7.73659555,253.7,253.65,20.0]
[1732531429495,7.73659555,253.76,253.69,7.73659555]
[1732531429879,7.3904,253.84,253.69,7.73659555]
[1732531430100,7.73659555,253.77,253.69,7.73659555]
[1732531430601,7.73659555,253.78,253.7,7.73659555]
[1732531432404,7.73659555,253.77,253.7,7.73659555]
[1732531432588,7.73659555,253.76,253.69,7.73659555]
[1732531433788,7.73659555,253.75,253.68,10.49589555]
[1732531436015,3.9405,253.77,253.68,10.49589555]
[1732531436016,3.9396,253.83,253.69,7.73659555]
[1732531436303,7.73659555,253.78,253.7,7.73659555]
[1732531437097,7.73659555,253.78,253.7,10.49559555]
[1732531437295,7.73836615,253.77,253.7,2.759]
[1732531438700,7.73836615,253.77,253.71,20.0]
[1732531441714,7.73836615,253.77,253.71,22.759]
[1732531443212,3.9403,253.79,253.71,20.0]
[1732531443213,7.73836615,253.76,253.71,20.0]
[1732531443796,7.73836615,253.76,253.67,20.0]
[1732531444209,7.73836615,253.74,253.67,20.0]
[1732531444909,7.73836615,253.74,253.68,2.7593]
[1732531446016,3.9403,253.79,253.68,2.7593]
[1732531446207,7.73836615,253.76,253.68,2.7593]
[1732531447002,13.7883,253.84,253.68,2.7593]
[1732531447199,7.73836615,253.76,253.68,2.7593]
[1732531448308,7.73836615,253.76,253.69,23.776884]
[1732531448994,7.73836615,253.74,253.69,23.776884]
[1732531449193,7.73836615,253.72,253.68,2.7593]
[1732531451715,7.73836615,253.74,253.68,2.7593]
[1732531452020,7.73836615,253.76,253.68,2.7593]
[1732531452416,3.9394,253.84,253.69,23.776884]
[1732531452609,7.73836615,253.77,253.69,23.776884]
[1732531453302,7.73836615,253.77,253.71,20.0]
[1732531454419,7.73836615,253.77,253.71,23.1531]
[1732531454595,7.73888002,253.77,253.71,23.1531]
[1732531455817,7.73888002,253.75,253.71,20.0]
[1732531456620,7.73888002,253.75,253.7,3.1533]
[1732531456919,7.73888002,253.77,253.7,23.1533]
[1732531457812,7.73888002,253.75,253.7,23.1533]
[1732531460207,7.73888002,253.75,253.67,7.73888002]
[1732531460419,7.73888002,253.75,253.68,26.930384]
[1732531462529,7.73888002,253.77,253.68,26.930384]
[1732531465121,7.73888002,253.75,253.68,26.930384]
[1732531466411,7.73888002,253.75,253.71,23.1531]
[1732531481341,7.73888002,253.73,253.67,36.91717377]
[1732531481534,7.73888002,253.7,253.67,36.91717377]
[1732531481716,7.73888002,253.7,253.66,3.1538]
[1732531484542,7.73888002,253.7,253.67,20.0]
[1732531485644,7.73888002,253.7,253.67,23.1535]
[1732531486643,7.73888002,253.72,253.67,23.1535]
[1732531489939,7.73888002,253.7,253.65,36.91717377]
[1732531490331,7.73888002,253.7,253.65,3.1539]
[1732531491930,3.9405,253.77,253.65,3.1539]
[1732531492135,7.73888002,253.7,253.65,3.1539]
[1732531493054,7.73888002,253.72,253.65,3.1539]
[1732531493540,3.9399,253.81,253.69,7.73888002]
[1732531493851,7.73888002,253.77,253.69,7.73888002]
[1732531494042,3.9399,253.81,253.65,48.54711367]
[1732531494043,7.73888002,253.75,253.7,20.0]
[1732531494548,7.73888002,253.73,253.7,20.0]
[1732531494773,3.9396,253.83,253.68,20.0]
[1732531494953,7.73888002,253.74,253.68,20.0]
[1732531495161,3.9396,253.83,253.68,20.0]
[1732531495327,7.73888002,253.74,253.68,20.0]
[1732531495829,7.73888002,253.74,253.69,3.1534]
[1732531496249,7.73888002,253.72,253.68,23.1535]
[1732531496633,7.73888002,253.72,253.69,20.0]
[1732531497228,7.73888002,253.72,253.68,23.1535]
[1732531497745,7.73888002,253.72,253.69,20.0]
[1732531497951,7.73888002,253.76,253.69,20.0]
[1732531499147,7.73888002,253.74,253.66,36.91717377]
[1732531499451,7.73888002,253.74,253.67,20.0]
[1732531499826,3.9404,253.78,253.67,20.0]
[1732531500036,7.73888002,253.75,253.67,20.0]
[1732531500445,7.73888002,253.75,253.68,3.1535]
[1732531500854,7.73888002,253.75,253.67,20.0]
[1732531501158,7.73888002,253.69,253.65,36.91717377]
[1732531501445,7.73888002,253.69,253.63,58.78957377]
[1732531501652,7.73888002,253.69,253.63,55.63547377]
[1732531501850,7.73888002,253.67,253.63,36.91717377]
[1732531502023,7.73888002,253.67,253.61,40.07147377]
[1732531502845,7.73888002,253.67,253.61,3.1543]
[1732531503042,17.4599,253.76,253.64,7.73888002]
[1732531503344,7.73888002,253.73,253.64,7.73888002]
[1732531503849,7.73888002,253.71,253.64,7.73888002]
[1732531504146,7.73888002,253.71,253.64,3.1539]
[1732531504534,7.73888002,253.69,253.63,20.0]
[1732531504737,7.73888002,253.69,253.64,20.0]
[1732531505852,7.73888002,253.69,253.63,20.0]
[1732531506855,7.73888002,253.65,253.58,49.18701204]
[1732531507054,7.73888002,253.62,253.58,49.18701204]
[1732531507351,7.73888002,253.62,253.57,53.58617377]
[1732531507927,7.73888002,253.62,253.57,19.8239]
[1732531508830,7.73888002,253.62,253.57,16.669]
[1732531509235,7.73888002,253.62,253.57,19.8238]
[1732531509947,7.73888002,253.62,253.57,3.1548]
[1732531510157,7.73888002,253.6,253.56,3.1549]
[1732531510340,7.73888002,253.6,253.54,3.1552]
[1732531510651,7.73888002,253.58,253.52,36.91717377]
[1732531510851,7.73888002,253.56,253.52,40.07267377]
[1732531511047,7.73888002,253.56,253.52,3.1555]
[1732531511558,5.97820702,253.56,253.5,2.7612]
[1732531512142,5.97820702,253.56,253.51,20.0]
[1732531513057,5.97820702,253.56,253.51,22.7611]
[1732531517760,5.97820702,253.56,253.51,2.7611]
[1732531517946,5.97820702,253.56,253.51,22.7611]
[1732531519752,7.73888002,253.57,253.51,22.7611]
[1732531520557,7.73888002,253.57,253.51,2.7611]
[1732531521158,7.73888002,253.57,253.51,22.7611]
[1732531521375,7.73888002,253.55,253.51,2.7611]
[1732531523173,7.73888002,253.53,253.46,6.8993]
[1732531523345,7.73888002,253.53,253.45,17.3223]
[1732531523346,7.73888002,253.48,253.45,17.3223]
[1732531523756,7.73888002,253.48,253.42,2.7622]
[1732531524462,7.73888002,253.47,253.42,2.7622]
[1732531524663,7.73888002,253.48,253.42,2.7622]
[1732531524852,7.73888002,253.47,253.42,2.7622]
[1732531525052,3.9443,253.53,253.42,10.50108002]
[1732531525255,3.9443,253.53,253.44,7.73888002]
[1732531525571,7.73888002,253.49,253.42,7.73888002]
[1732531526567,7.73888002,253.49,253.34,15.7887]
[1732531526568,7.73888002,253.43,253.35,3.932]
[1732531526782,7.73888002,253.37,253.35,3.932]
[1732531527670,7.73888002,253.38,253.35,3.932]
[1732531528660,7.73888002,253.38,253.35,23.932]
[1732531528882,7.73888002,253.38,253.35,3.932]
[1732531529064,7.73888002,253.38,253.35,20.0]
[1732531529974,7.73888002,253.39,253.35,20.0]
[1732531530955,3.9454,253.46,253.36,2.7628]
[1732531531152,7.73888002,253.44,253.37,20.0]
[1732531531379,31.84323026,253.55,253.38,7.73888002]
[1732531531562,7.73888002,253.46,253.39,7.73888002]
[1732531532045,7.73888002,253.47,253.39,7.73888002]
[1732531532250,3.9441,253.54,253.37,50.95552008]
[1732531532451,7.73888002,253.5,253.43,7.73888002]
[1732531533271,21.3327,253.55,253.45,7.73888002]
[1732531533459,7.73888002,253.51,253.4,9.6684]
[1732531533663,7.73888002,253.5,253.43,7.73888002]
[1732531534466,7.73888002,253.49,253.42,7.73888002]
[1732531535277,7.73888002,253.49,253.43,2.7621]
[1732531535757,7.73888002,253.49,253.42,7.73888002]
[1732531536575,7.73888002,253.48,253.41,7.73888002]
[1732531536777,7.73888002,253.49,253.42,7.73888002]
[1732531537275,7.73888002,253.51,253.43,7.73888002]
[1732531538369,3.9442,253.54,253.45,7.73888002]
[1732531538672,7.73888002,253.52,253.45,2.7618]
[1732531539383,7.73888002,253.52,253.45,10.50068002]
[1732531539761,7.73888002,253.52,253.45,2.7618]
[1732531540380,7.73888002,253.52,253.45,10.50068002]
[1732531541381,7.73888002,253.52,253.45,2.7618]
[1732531541585,3.9443,253.53,253.43,20.0]
[1732531541586,7.73888002,253.51,253.43,27.73888002]
[1732531541789,7.73888002,253.51,253.44,2.7619]
[1732531542079,7.73888002,253.5,253.44,2.7619]
[1732531542764,7.73888002,253.49,253.44,2.7619]
[1732531542960,7.73888002,253.45,253.37,2.7627]
[1732531543175,7.73888002,253.4,253.37,2.7627]
[1732531544267,12.1273966,253.39,253.35,20.0]
[1732531545466,12.1273966,253.39,253.34,2.763]